fUSD/lending_fUSD_20241129
["ID","MTS","AMOUNT","RATE_DAILY","PERIOD"]
[343685888,1732851032832,-4836.15591455,9.81e-05,2]
[343685908,1732851038434,-282.772,9.618e-05,2]
[343685909,1732851038447,-2893.69213969,9.81e-05,2]
[343685910,1732851038459,-877.1230489,9.81e-05,2]
[343685911,1732851038604,-21986.09762722,9.81e-05,2]
[343685912,1732851038614,-150.0,9.825e-05,2]
[343685913,1732851038623,-157.4453192,9.826e-05,2]
[343685914,1732851038633,-1080.24,9.863e-05,2]
[343685915,1732851038642,-150.0,9.882e-05,2]
[343685916,1732851038651,-502.9216,9.897e-05,2]
[343685917,1732851038660,-173.82125918,9.911e-05,2]
[343685918,1732851038670,-150.52547463,9.911e-05,2]
[343685919,1732851038680,-23966.40987066,9.95e-05,2]
[343685932,1732851040405,-4831.55,9.95e-05,2]
[343685933,1732851040591,-2210.05827512,9.95e-05,2]
[343685934,1732851040601,-150.0,9.953e-05,2]
[343685935,1732851040610,-2504.56241904,9.96e-05,2]
[343685936,1732851040622,-360.12398305,9.96e-05,2]
[343685937,1732851040633,-24249.79200079,9.96e-05,2]
[343685940,1732851043518,-150.0,9.618e-05,2]
[343685941,1732851043528,-2713.91791001,9.96e-05,2]
[343685942,1732851043670,-1432.30532102,9.96e-05,2]
[343685954,1732851046519,-377.45473704,9.96e-05,2]
[343685955,1732851046531,-4565.04563354,9.96e-05,2]
[343685957,1732851337958,6274.02084467,0.00027,90]
[343685962,1732851853966,15000.0,0.00027,90]
[343685963,1732851910760,5000.0,0.00027,90]
[343685964,1732851942109,2577.0,0.00025,120]
[343686010,1732852232768,-1133.68,8.219e-05,2]
[343686011,1732852232779,-250.0,8.923e-05,2]
[343686012,1732852232789,-119.54425527,8.923e-05,2]
[343686013,1732852232800,-130.45574473,8.923e-05,2]
[343686014,1732852232810,-1000.0,8.93e-05,2]
[343686015,1732852232820,-300.25,8.938e-05,2]
[343686016,1732852232830,-250.0,8.955e-05,2]
[343686017,1732852232841,-2653.16366226,9e-05,2]
[343686018,1732852233075,-318.71150735,9e-05,2]
[343686028,1732852239005,-737.81848118,9e-05,2]
[343686035,1732852240875,-1290.65375441,9e-05,2]
[343686036,1732852240887,-325.22624558,9.06e-05,2]
[343686038,1732852243592,-33.23375442,9.06e-05,2]
[343686039,1732852243602,-165.89,9.105e-05,2]
[343686040,1732852243612,-300.0,9.588e-05,2]
[343686041,1732852243621,-864.19,9.589e-05,2]
[343686042,1732852243631,-400.0,9.589e-05,2]
[343686043,1732852243641,-150.0,9.673e-05,2]
[343686044,1732852243651,-1260.0,9.674e-05,2]
[343686045,1732852243661,-566.0,9.674e-05,2]
[343686046,1732852243670,-150.0,9.674e-05,2]
[343686047,1732852243680,-2000.0,9.674e-05,2]
[343686048,1732852243690,-630.0,9.674e-05,2]
[343686049,1732852243699,-562.0,9.674e-05,2]
[343686050,1732852243708,-1929.0,9.674e-05,2]
[343686051,1732852243718,-1262.0,9.674e-05,2]
[343686052,1732852243727,-816.0,9.674e-05,2]
[343686053,1732852243736,-3755.0,9.674e-05,2]
[343686054,1732852243746,-534.0,9.674e-05,2]
[343686055,1732852243756,-3330.50748582,9.674e-05,2]
[343686056,1732852243767,-189.49251418,9.674e-05,2]
[343686057,1732852243777,-977.0,9.674e-05,2]
[343686058,1732852243788,-150.0,9.674e-05,2]
[343686059,1732852243798,-150.0,9.674e-05,2]
[343686060,1732852243807,-150.0,9.674e-05,2]
[343686061,1732852243816,-250.0,9.674e-05,2]
[343686062,1732852243825,-248.7,9.674e-05,2]
[343686063,1732852243835,-864.19,9.726e-05,2]
[343686064,1732852243847,-150.0,9.8e-05,2]
[343686065,1732852243858,-864.19,9.863e-05,2]
[343686066,1732852243868,-2500.0,9.872e-05,2]
[343686067,1732852243877,-2704.10121785,9.959e-05,2]
[343686068,1732852243890,-1483.45972168,9.959e-05,2]
[343686069,1732852243902,-2996.43740174,9.959e-05,2]
[343686070,1732852243913,-6411.27968312,9.959e-05,2]
[343686071,1732852243996,-1253.33713129,9.959e-05,2]
[343686072,1732852244005,-8830.85825954,9.96e-05,2]
[343686080,1732852246537,-2374.06448621,9.96e-05,2]
[343686085,1732852641960,34251.0,0.00027,120]
[343686122,1732853434771,-1076.99,8.219e-05,2]
[343686123,1732853434781,-250.0,8.901e-05,2]
[343686124,1732853434790,-150.12,8.918e-05,2]
[343686125,1732853434799,-1000.0,8.951e-05,2]
[343686126,1732853434808,-286.76,9.015e-05,2]
[343686127,1732853434818,-250.0,9.03e-05,2]
[343686128,1732853434827,-165.89,9.031e-05,2]
[343686129,1732853434838,-170.65,9.109e-05,2]
[343686130,1732853434848,-166.54,9.183e-05,2]
[343686131,1732853434856,-5550.16622797,9.5e-05,2]
[343686136,1732853437442,-1161.5,9.5e-05,2]
[343686137,1732853437547,-1051.69998,9.5e-05,2]
[343686143,1732853439495,-300.0,9.5e-05,2]
[343686144,1732853439510,-1305.50759233,9.5e-05,2]
[343686145,1732853439549,-631.1261997,9.5e-05,2]
[343686146,1732853439561,-9381.2467847,9.5e-05,2]
[343686147,1732853439710,-673.8032153,9.5e-05,2]
[343686148,1732853439721,-321.45,9.589e-05,2]
[343686149,1732853439733,-691.35,9.589e-05,2]
[343686150,1732853439744,-150.0,9.673e-05,2]
[343686151,1732853439757,-153.506,9.674e-05,2]
[343686152,1732853439768,-563.0,9.674e-05,2]
[343686153,1732853439780,-176.59893324,9.674e-05,2]
[343686154,1732853439797,-499.7582014,9.674e-05,2]
[343686155,1732853439816,-580.64286536,9.674e-05,2]
[343686156,1732853439827,-630.0,9.674e-05,2]
[343686157,1732853439840,-1393.04902867,9.674e-05,2]
[343686158,1732853439856,-325.328,9.674e-05,2]
[343686159,1732853439868,-278.62297133,9.674e-05,2]
[343686160,1732853439879,-562.0,9.674e-05,2]
[343686161,1732853439892,-2571.52545385,9.674e-05,2]
[343686168,1732853442541,-1203.15354615,9.674e-05,2]
[343686169,1732853442553,-817.0,9.674e-05,2]
[343686170,1732853442566,-1269.078,9.674e-05,2]
[343686171,1732853442578,-691.35,9.726e-05,2]
[343686172,1732853442589,-500.0,9.781e-05,2]
[343686173,1732853442600,-691.35,9.863e-05,2]
[343686174,1732853442611,-498.19,9.892e-05,2]
[343686175,1732853442622,-1888.71078218,9.9e-05,2]
[343686176,1732853442633,-9100.45989751,9.9e-05,2]
[343686177,1732853442644,-150.0,9.931e-05,2]
[343686178,1732853442655,-507.49,9.958e-05,2]
[343686179,1732853442666,-19864.33968684,9.96e-05,2]
[343686180,1732853442680,-3971.6973227,9.96e-05,2]
[343686181,1732853442693,-497.62,9.96e-05,2]
[343686182,1732853442704,-498.61,9.97e-05,2]
[343686183,1732853442715,-2070.87968366,9.971e-05,2]
[343686184,1732853442729,-102.60831634,9.971e-05,2]
[343686185,1732853442739,-179.454,9.971e-05,2]
[343686186,1732853442751,-3131.31756617,9.972e-05,2]
[343686187,1732853442767,-2661.58332675,9.972e-05,2]
[343686188,1732853442818,-64055.6991,9.972e-05,2]
[343686189,1732853442836,-2067.54001793,9.972e-05,2]
[343686190,1732853442849,-3923.42715027,9.972e-05,2]
[343686191,1732853442866,-1074.925,9.972e-05,2]
[343686197,1732853445530,-333.97148701,9.972e-05,2]
[343686198,1732853445584,-6503.19173614,9.972e-05,2]
[343686199,1732853445638,-24333.60554926,9.972e-05,2]
[343686200,1732853445650,-522.01898272,9.972e-05,2]
[343686201,1732853445661,-3187.88732942,9.972e-05,2]
[343686202,1732853445694,-1564.21538,9.972e-05,2]
[343686212,1732853653615,3019.94708945,0.00027,90]
[343686213,1732853657348,5000.0,0.00027,90]
[343686217,1732854226807,3000.0,0.0002699,90]
[343686259,1732854631721,-1052.61,8.219e-05,2]
[343686260,1732854631731,-170.65,8.992e-05,2]
[343686261,1732854631741,-8.99936566,9.001e-05,2]
[343686262,1732854631887,-241.00063434,9.001e-05,2]
[343686263,1732854631897,-1000.0,9.005e-05,2]
[343686264,1732854631906,-250.0,9.021e-05,2]
[343686265,1732854631915,-250.0,9.048e-05,2]
[343686266,1732854631924,-536.89,9.049e-05,2]
[343686267,1732854631935,-192.66,9.171e-05,2]
[343686268,1732854631945,-166.7,9.284e-05,2]
[343686269,1732854631954,-553.08,9.589e-05,2]
[343686270,1732854631963,-553.08,9.726e-05,2]
[343686271,1732854631973,-816.0,9.731e-05,2]
[343686272,1732854631982,-633.0,9.731e-05,2]
[343686273,1732854631992,-553.08,9.863e-05,2]
[343686274,1732854632001,-1868.8092,9.89e-05,2]
[343686275,1732854632010,-584.37495268,9.96e-05,2]
[343686276,1732854632020,-150.0,9.965e-05,2]
[343686277,1732854632029,-2658.695865,9.966e-05,2]
[343686278,1732854632038,-3091.2073276,9.966e-05,2]
[343686279,1732854632048,-1557.092896,9.966e-05,2]
[343686280,1732854632057,-811.1388484,9.966e-05,2]
[343686281,1732854632066,-408.5842211,9.966e-05,2]
[343686282,1732854632075,-53.3643552,9.966e-05,2]
[343686283,1732854632119,-506.66372893,9.966e-05,2]
[343686371,1732854637603,-1023.00778839,9.767e-05,2]
[343686372,1732854637614,-3736.43621627,9.966e-05,2]
[343686373,1732854637624,-501.42,9.966e-05,2]
[343686374,1732854637633,-490.24,9.966e-05,2]
[343686375,1732854637644,-6386.97187819,9.97e-05,2]
[343686376,1732854637653,-1942.03625344,9.97e-05,2]
[343686377,1732854637662,-2774.06609784,9.971e-05,2]
[343686378,1732854637672,-503.49,9.972e-05,2]
[343686379,1732854637682,-48659.0,9.973e-05,2]
[343686380,1732854637697,-500.0,9.973e-05,2]
[343686381,1732854637706,-579.9064751,9.973e-05,2]
[343686382,1732854637716,-159.83968,9.973e-05,2]
[343686383,1732854637725,-161.40700772,9.973e-05,2]
[343686384,1732854637735,-208.7467021,9.973e-05,2]
[343686385,1732854637745,-500.0,9.973e-05,2]
[343686386,1732854637756,-3473.43190095,9.98e-05,2]
[343686387,1732854637984,-16158.11489985,9.98e-05,2]
[343686388,1732854637995,-6165.79552268,9.98e-05,2]
[343686389,1732854638007,-3933.28328103,9.98e-05,2]
[343686390,1732854638019,-12523.59092512,9.98e-05,2]
[343686391,1732854638028,-35741.18246566,9.99e-05,2]
[343686436,1732854639618,-4312.468795,9.99e-05,2]
[343686437,1732854639674,-685.408,9.99e-05,2]
[343686438,1732854639846,-998.45,9.99e-05,2]
[343686451,1732854642841,-8054.28,9.99e-05,2]
[343686452,1732854642951,-1614.90944766,9.99e-05,2]
[343686453,1732854642963,-1747.4404204,9.99e-05,2]
[343686464,1732854645664,-268.44,9.614e-05,2]
[343686465,1732854645674,-43836.68577481,9.99e-05,2]
[343686466,1732854645723,-16313.06987163,9.99e-05,2]
[343686467,1732854645945,-13687.99831883,9.99e-05,2]
[343686468,1732854645957,-1549.5,9.99e-05,2]
[343686472,1732854690227,150.0,0.00027,90]
[343686475,1732854723629,50000.0,0.00027,90]
[343686480,1732854987730,158.827887,0.00027,90]
[343686486,1732855007032,151.0,0.00027,90]
[343686487,1732855020051,151.0,0.00027,90]
[343686496,1732855359823,200.0,0.00027,90]
[343686497,1732855380698,2000.0,0.00027,90]
[343686498,1732855441753,1000.0,0.00027,90]
[343686499,1732855493450,800.0,0.00027,90]
[343686502,1732855625524,312.0,0.00027,90]
[343686574,1732855832003,-1007.56,8.219e-05,2]
[343686575,1732855832014,-230.09264078,8.975e-05,2]
[343686576,1732855832066,-769.90735922,8.975e-05,2]
[343686577,1732855832076,-200.0,8.982e-05,2]
[343686578,1732855832086,-250.0,8.998e-05,2]
[343686579,1732855832096,-168.02,8.998e-05,2]
[343686580,1732855832106,-23900.0,9.004e-05,2]
[343686581,1732855832116,-176.23,9.01e-05,2]
[343686582,1732855832125,-365.14,9.018e-05,2]
[343686583,1732855832135,-250.0,9.019e-05,2]
[343686584,1732855832144,-250.0,9.036e-05,2]
[343686585,1732855832154,-316.97,9.102e-05,2]
[343686586,1732855832163,-442.46,9.589e-05,2]
[343686587,1732855832173,-442.46,9.726e-05,2]
[343686588,1732855832182,-1140.85943466,9.79e-05,2]
[343686589,1732855832192,-442.46,9.863e-05,2]
[343686590,1732855832201,-500.0,9.973e-05,2]
[343686591,1732855832210,-150.0,9.985e-05,2]
[343686592,1732855832220,-227.6769832,9.986e-05,2]
[343686593,1732855832229,-4386.0385799,9.986e-05,2]
[343686594,1732855832239,-778.6691996,9.986e-05,2]
[343686595,1732855832248,-8469.6650519,9.986e-05,2]
[343686596,1732855832258,-5085.4534709,9.986e-05,2]
[343686597,1732855832267,-1387.2428961,9.986e-05,2]
[343686598,1732855832277,-2754.0138527,9.986e-05,2]
[343686599,1732855832291,-2774.06609784,9.989e-05,2]
[343686600,1732855832300,-493.89,9.99e-05,2]
[343686601,1732855832310,-503.92,9.99e-05,2]
[343686602,1732855832319,-93116.26016845,9.99e-05,2]
[343686603,1732855832329,-232.5509784,9.993e-05,2]
[343686604,1732855832338,-237.4249737,9.993e-05,2]
[343686605,1732855832348,-242.298969,9.993e-05,2]
[343686606,1732855832357,-247.1729642,9.993e-05,2]
[343686607,1732855832367,-252.0469595,9.993e-05,2]
[343686608,1732855832377,-4479.9327054,9.993e-05,2]
[343686609,1732855832387,-4573.8268309,9.993e-05,2]
[343686610,1732855832397,-4667.7209564,9.993e-05,2]
[343686611,1732855832407,-4761.615082,9.993e-05,2]
[343686612,1732855832418,-4855.5092075,9.993e-05,2]
[343686613,1732855832427,-8590.3595331,9.993e-05,2]
[343686614,1732855832438,-8711.0540144,9.993e-05,2]
[343686615,1732855832448,-8831.7484957,9.993e-05,2]
[343686616,1732855832458,-8952.4429769,9.993e-05,2]
[343686617,1732855832469,-9073.1374582,9.993e-05,2]
[343686618,1732855832479,-5157.9222362,9.993e-05,2]
[343686619,1732855832488,-5230.3910015,9.993e-05,2]
[343686620,1732855832497,-5302.8597667,9.993e-05,2]
[343686621,1732855832507,-5375.328532,9.993e-05,2]
[343686622,1732855832516,-5447.7972973,9.993e-05,2]
[343686623,1732855832525,-1407.0113947,9.993e-05,2]
[343686624,1732855832535,-1426.7798933,9.993e-05,2]
[343686625,1732855832545,-1446.5483919,9.993e-05,2]
[343686626,1732855832555,-1466.3168905,9.993e-05,2]
[343686627,1732855832564,-1486.0853891,9.993e-05,2]
[343686628,1732855832574,-2793.2591205,9.993e-05,2]
[343686629,1732855832583,-2832.5043883,9.993e-05,2]
[343686630,1732855832592,-2871.7496562,9.993e-05,2]
[343686631,1732855832602,-2910.994924,9.993e-05,2]
[343686632,1732855832611,-2950.2401918,9.993e-05,2]
[343686633,1732855832619,-35862.60380202,9.998e-05,2]
[343686634,1732855832630,-238042.74727173,9.999e-05,2]
[343686635,1732855832639,-3363.39586341,9.999e-05,2]
[343686636,1732855832649,-40317.10810996,9.999e-05,2]
[343686637,1732855832665,-16085.0,9.999e-05,2]
[343686638,1732855832678,-700.0,9.999e-05,2]
[343686639,1732855832689,-5880.0,9.999e-05,2]
[343686640,1732855832700,-1360.0,9.999e-05,2]
[343686641,1732855832711,-4102.47874104,9.999e-05,2]
[343686642,1732855832721,-2000.0,9.999e-05,2]
[343686643,1732855832730,-2000.0,9.999e-05,2]
[343686644,1732855832739,-2000.0,9.999e-05,2]
[343686645,1732855832749,-7607.5212597,9.999e-05,2]
[343686646,1732855832760,-29938.23102678,9.999e-05,2]
[343686648,1732855837882,-289.4002629,9.993e-05,2]
[343686649,1732855838219,-219.05152446,9.993e-05,2]
[343686650,1732855838230,-24788.60375514,9.999e-05,2]
[343686651,1732855838240,-1119.27861215,0.0001,2]
[343686652,1732855838250,-1119.27861208,0.0001,2]
[343686653,1732855838259,-1119.27861208,0.0001,2]
[343686654,1732855838268,-1119.27861208,0.0001,2]
[343686655,1732855838277,-1119.27861208,0.0001,2]
[343686657,1732855838287,-1119.27861208,0.0001,2]
[343686659,1732855838297,-1119.27861208,0.0001,2]
[343686661,1732855838306,-1119.27861208,0.0001,2]
[343686662,1732855838315,-1119.27861208,0.0001,2]
[343686663,1732855838325,-13172.9015787,0.0001,2]
[343686714,1732855840015,-150.0,9.79e-05,2]
[343686715,1732855840025,-153.82542108,0.0001,2]
[343686716,1732855840037,-5036.11007927,0.0001,2]
[343686717,1732855840050,-1074.88500001,0.0001,2]
[343686718,1732855840112,-57577.89595076,0.0001,2]
[343686719,1732855840169,-4822.2,0.0001,2]
[343686724,1732855842900,-508.45178735,9.994e-05,2]
[343686725,1732855842909,-2685.01961926,0.0001,2]
[343686726,1732855843061,-28500.00005,0.0001,2]
[343686759,1732855846033,-508.45178735,9.995e-05,2]
[343686760,1732855846042,-9509.98799845,0.0001,2]
[343686761,1732855846055,-308.92552132,0.0001,2]
[343686762,1732855873725,4070.38,0.00027,90]
[343686765,1732855971894,258.00332781,0.00027,90]
[343686770,1732856402652,711.89,0.0001,14]
[343686782,1732856803193,3005.0,0.00027,90]
[343686827,1732856884892,160.57655556,8e-05,2]
[343686828,1732856884919,5168.63710934,8e-05,2]
[343686830,1732856945188,160.58,7.426e-05,2]
[343686836,1732857013085,3000.0,0.00027,90]
[343686859,1732857032076,-1039.69,8.219e-05,2]
[343686860,1732857032085,-300.0,9.249e-05,2]
[343686861,1732857032094,-250.0,9.25e-05,2]
[343686862,1732857032103,-60.5,9.25e-05,2]
[343686863,1732857032114,-1931.89608,9.25e-05,2]
[343686864,1732857032348,-18836.80392,9.25e-05,2]
[343686865,1732857032359,-500.0,9.283e-05,2]
[343686866,1732857032368,-182.57,9.307e-05,2]
[343686867,1732857032378,-253.57,9.334e-05,2]
[343686868,1732857032387,-1000.0,9.446e-05,2]
[343686869,1732857032397,-5943.0701,9.893e-05,2]
[343686870,1732857032407,-150.0,9.899e-05,2]
[343686871,1732857032415,-999.1652,9.9e-05,2]
[343686872,1732857032424,-12852.96,9.9e-05,2]
[343686873,1732857032433,-3392.05,9.9e-05,2]
[343686874,1732857032442,-500.0,9.973e-05,2]
[343686875,1732857032452,-492.01,9.995e-05,2]
[343686876,1732857032462,-2000.0,9.999e-05,2]
[343686877,1732857032471,-477.6244,9.999e-05,2]
[343686878,1732857032481,-108200.17638,0.0001,2]
[343686896,1732857038300,-1753.60130314,0.0001,2]
[343686897,1732857038313,-590.81957242,0.0001,2]
[343686904,1732857040049,-8038.30151613,0.0001,2]
[343686905,1732857040331,-438.47486417,0.0001,2]
[343686906,1732857040341,-1681.6979317,0.0001,2]
[343686907,1732857040350,-2699.32720413,0.0001,2]
[343686908,1732857040363,-300.0,0.0001,2]
[343686909,1732857040710,-423.9665,0.0001,2]
[343686916,1732857043113,-1758.95059717,0.0001,2]
[343686917,1732857043124,-4234.2365036,0.0001,2]
[343686918,1732857043280,-4051.22572639,0.0001,2]
[343686919,1732857043292,-52952.3109493,0.0001,2]
[343686922,1732857045930,-93516.4236,0.0001,2]
[343686923,1732857045988,-4862.7536625,0.0001,2]
[343686924,1732857046266,-2184.396,0.0001,2]
[343686925,1732857046279,-485.115,0.0001,2]
[343686926,1732857046290,-475.962625,0.0001,2]
[343686940,1732857466205,10000.0,0.00027,90]
[343686941,1732857493242,1000.0,0.00027,90]
[343686963,1732858181539,154.0,0.00027,90]
[343686984,1732858232256,-987.7,8.219e-05,2]
[343686986,1732858232266,-172.99,8.629e-05,2]
[343686988,1732858232275,-864.38,8.646e-05,2]
[343686990,1732858232285,-160.3,8.668e-05,2]
[343686992,1732858232293,-1820.78,8.747e-05,2]
[343686994,1732858232303,-300.0,8.766e-05,2]
[343686996,1732858232312,-6704.2,8.767e-05,2]
[343686998,1732858232321,-3009.06,8.817e-05,2]
[343687000,1732858232330,-182.57,8.864e-05,2]
[343687002,1732858232339,-1000.0,8.882e-05,2]
[343687004,1732858232349,-176.23,8.895e-05,2]
[343687006,1732858232358,-7868.2,8.939e-05,2]
[343687008,1732858232367,-903.7,8.954e-05,2]
[343687010,1732858232377,-1046.66853284,9e-05,2]
[343687012,1732858232386,-2627.03,9.019e-05,2]
[343687014,1732858232396,-12445.81146392,9.06e-05,2]
[343687016,1732858232409,-11454.18853608,9.06e-05,2]
[343687018,1732858232419,-353.96,9.589e-05,2]
[343687020,1732858232428,-420.0,9.643e-05,2]
[343687021,1732858232438,-172.12,9.661e-05,2]
[343687022,1732858232447,-173.993246,9.712e-05,2]
[343687023,1732858232457,-353.96,9.726e-05,2]
[343687024,1732858232466,-150.0,9.8e-05,2]
[343687025,1732858232476,-16860.0092447,9.801e-05,2]
[343687051,1732858238314,-250.0,8.599e-05,2]
[343687052,1732858238324,-1310.0,9.801e-05,2]
[343687053,1732858238486,-2225.9044809,9.801e-05,2]
[343687175,1732858240363,-4074.0862744,9.801e-05,2]
[343687176,1732858240372,-633.0,9.851e-05,2]
[343687177,1732858240382,-324.06,9.851e-05,2]
[343687178,1732858240392,-353.96,9.863e-05,2]
[343687179,1732858240401,-630.38470176,9.9e-05,2]
[343687180,1732858240416,-1448.05109824,9.9e-05,2]
[343687181,1732858240426,-644.64224627,9.9e-05,2]
[343687182,1732858243189,-527.04144064,9.9e-05,2]
[343687183,1732858243238,-1171.72631309,9.9e-05,2]
[343687184,1732858243247,-170.762,9.9e-05,2]
[343687185,1732858243257,-527.0414,9.9e-05,2]
[343687186,1732858243266,-500.0,9.973e-05,2]
[343687187,1732858243276,-796.49060567,9.99e-05,2]
[343687188,1732858243285,-1000.0,9.993e-05,2]
[343687189,1732858243295,-29938.23102579,9.999e-05,2]
[343687190,1732858243304,-11179.96863318,0.0001,2]
[343687191,1732858243315,-3688.99558104,0.0001,2]
[343687192,1732858243330,-4323.77697725,0.0001,2]
[343687194,1732858246147,-3161.4502112,0.0001,2]
[343687195,1732858246322,-1308.0504925,0.0001,2]
[343687196,1732858246382,-23161.75,0.0001,2]
[343687197,1732858290018,300.0,0.00027,90]
[343687199,1732858319243,3000.0,0.00027,90]
[343687202,1732858457619,-400.0,9.767e-05,2]
[343687203,1732858457643,-2672.74,9.796e-05,2]
[343687204,1732858457664,-150.0,9.899e-05,2]
[343687205,1732858457686,-300.0,9.899e-05,2]
[343687206,1732858457710,-40189.78693518,9.9e-05,2]
[343687207,1732858457733,-840.84896586,9.9e-05,2]
[343687208,1732858457755,-712184.6048,9.9e-05,2]
[343687209,1732858457776,-1006.0,9.9e-05,2]
[343687210,1732858457798,-1000.0,9.9e-05,2]
[343687211,1732858457819,-2065.1572,9.9e-05,2]
[343687212,1732858457842,-1008.0,9.9e-05,2]
[343687213,1732858457867,-500.0,9.973e-05,2]
[343687214,1732858457890,-1789.48435135,9.999e-05,2]
[343687215,1732858457913,-1058424.21016845,0.0001,2]
[343687216,1732858457935,-1931622.29625625,0.0001,2]
[343687217,1732858457958,-13000330.71440516,0.0001,2]
[343687218,1732858457983,-14385172.75474798,0.0001,2]
[343687219,1732858458005,-1000.0,0.0001,2]
[343687220,1732858458027,-1000.0,0.0001,2]
[343687221,1732858458049,-1000.0,0.0001,2]
[343687222,1732858458071,-1000.0,0.0001,2]
[343687223,1732858458092,-136839.46321008,0.0001,2]
[343687224,1732858458116,-4137.28390054,0.0001,2]
[343687225,1732858458138,-2343.26999999,0.0001,2]
[343687226,1732858458161,-237683.18311801,0.0001,2]
[343687227,1732858458185,-8817530.3897268,0.0001,2]
[343687228,1732858458207,-2605.60224483,0.0001,2]
[343687229,1732858458230,-8011.14046629,0.0001,2]
[343687230,1732858458253,-60761.36600623,0.0001,2]
[343687231,1732858458276,-14937.75121126,0.0001,2]
[343687232,1732858458299,-271918.10549872,0.0001,2]
[343687233,1732858458321,-150.74579287,0.0001,2]
[343687234,1732858458346,-9629671.72745814,0.0001,2]
[343687235,1732858458370,-377.87357947,0.0001,2]
[343687236,1732858458392,-4265.29,0.0001,2]
[343687237,1732858458414,-182595.97349903,0.0001,2]
[343687238,1732858458438,-8378983.76936722,0.0001,2]
[343687239,1732858458460,-300.0,0.0001,2]
[343687240,1732858458484,-5127156.33953076,0.0001,2]
[343687241,1732858458506,-962.55438292,0.0001,2]
[343687242,1732858458528,-1522.96376049,0.0001,2]
[343687243,1732858458550,-16643.79220079,0.0001,2]
[343687244,1732858458573,-150.0,0.0001,2]
[343687245,1732858458598,-7857744.73453607,0.0001,2]
[343687246,1732858458624,-5632166.61183956,0.0001,2]
[343687247,1732858458647,-14334623.4708397,0.0001,2]
[343687248,1732858459473,350.25436513,0.00027,90]
[343687256,1732858830684,280.0,0.00011,10]
[343687260,1732859040527,5100.0,0.00014,21]
[343687261,1732859043672,5100.0,0.00014,22]
[343687282,1732859383070,678.28760905,0.0002,120]
[343687284,1732859431517,-1089.26,8.219e-05,2]
[343687285,1732859431527,-302.76,8.884e-05,2]
[343687286,1732859431537,-765.08,8.888e-05,2]
[343687288,1732859431546,-150.45,8.888e-05,2]
[343687290,1732859431555,-1000.0,8.949e-05,2]
[343687292,1732859431565,-1685.41853284,9.021e-05,2]
[343687294,1732859431576,-987.32146716,9.021e-05,2]
[343687296,1732859431586,-167.38,9.053e-05,2]
[343687298,1732859431595,-1081.33,9.077e-05,2]
[343687299,1732859431604,-250.0,9.141e-05,2]
[343687300,1732859431613,-172.12,9.187e-05,2]
[343687301,1732859431622,-157.45,9.589e-05,2]
[343687302,1732859431631,-400.0,9.589e-05,2]
[343687303,1732859431640,-1515.9790595,9.604e-05,2]
[343687304,1732859431729,-422.3519405,9.604e-05,2]
[343687305,1732859431738,-170.76282501,9.604e-05,2]
[343687306,1732859431749,-150.99,9.67e-05,2]
[343687307,1732859431758,-850.34025262,9.67e-05,2]
[343687308,1732859431801,-1512.68,9.67e-05,2]
[343687309,1732859431833,-2391.36593347,9.67e-05,2]
[343687393,1732859439513,-731.38604462,9.67e-05,2]
[343687394,1732859439686,-5219.76776929,9.67e-05,2]
[343687395,1732859439697,-232.93,9.68e-05,2]
[343687396,1732859439706,-2065.1572,9.7e-05,2]
[343687397,1732859439716,-173.993246,9.712e-05,2]
[343687398,1732859439726,-157.45,9.737e-05,2]
[343687399,1732859439735,-150.0,9.799e-05,2]
[343687400,1732859439745,-14320.3672797,9.8e-05,2]
[343687401,1732859442471,-1834.08481493,9.8e-05,2]
[343687402,1732859442483,-4448.31014627,9.8e-05,2]
[343687403,1732859442494,-21321.69000001,9.8e-05,2]
[343687404,1732859442600,-6171.12470719,9.8e-05,2]
[343687405,1732859442612,-4445.17610251,9.8e-05,2]
[343687406,1732859442623,-4741.99907337,9.8e-05,2]
[343687449,1732859445354,-24125.0,9.8e-05,2]
[343687450,1732859445579,-18538.4253096,9.8e-05,2]
[343687454,1732859445837,-612238.42736642,9.8e-05,2]
[343687456,1732859445847,-157.45,9.884e-05,2]
[343687458,1732859445856,-4631.62162543,9.9e-05,2]
[343687460,1732859445865,-1006.0,9.9e-05,2]
[343687462,1732859445874,-1000.0,9.9e-05,2]
[343687464,1732859445884,-50000.0,9.9e-05,2]
[343687466,1732859445893,-630.0,9.911e-05,2]
[343687468,1732859445903,-1264.0,9.911e-05,2]
[343687470,1732859445912,-816.0,9.911e-05,2]